Cogmind - Beta 10.2 @@@ ROGUE MODE // 2021.08.08 @ 16:16:50 Player: Cypher Result: Destroyed by G-67 Veteran with Plasma Rifle Performance ------------- Evolutions (5) 2500 Regions Visited (17) 3400 Robots Destroyed (113) 565 Value Destroyed (4069) 4069 Prototype IDs (49) 980 Alien Tech Used (2) 400 Bonus (4317) 4317 TOTAL SCORE: 16231 Bonus ------- High Alert Combat Kills 1606 Follower Combat Kills 2009 Aligned with FarCom 300 Met Imprinter 300 Met Zhirov 300 Friendly Fire -198 Cogmind --------- Core Integrity 0/1000 Matter 259/300 Energy 1095/1095 System Corruption 3% Temperature Cool (12) Movement Hovering (42) Location -4/Proximity Caves Parts ------- > --- POWER (1) -------- Fusion Reactor > --- PROPULSION (4) --- Cooled Gravmag System Cooled Gravmag System Cooled Gravmag System > --- UTILITY (8) ------ Improved Coolant Injector Advanced Energy Well Advanced Signal Interpreter 0b10 Decoder Chip [Looter] Improved Target Analyzer Experimental Power Shielding Advanced Hacking Suite Dynamic Insulation System > --- WEAPON (4) ------- Mass Driver Power Maul > --- INVENTORY (4) ---- Skeleton Box Peak State ------------ > --- POWER ------------ Fusion Reactor > --- PROPULSION ------- Cooled Gravmag System Cooled Gravmag System Cooled Gravmag System > --- UTILITY ---------- Improved Coolant Injector Advanced Energy Well Advanced Signal Interpreter 0b10 Decoder Chip [Looter] Improved Target Analyzer Experimental Power Shielding Advanced Hacking Suite Dynamic Insulation System > --- WEAPON ----------- Mass Driver Dirty Datajack Power Maul > --- INVENTORY -------- Skeleton Box [Rating: 87] Favorites ----------- Power Ion Engine Engine Ion Engine Power Core Light Nuclear Core Reactor Fusion Reactor Propulsion Improved Airjet Treads Improved Medium Treads Leg Enhanced Flexi-carbon Leg Wheel Compact Wheel Hover Unit Improved Airjet Utility High-capacity Storage Unit Device Improved Cooling System Storage High-capacity Storage Unit Processor Improved Targeting Computer Hackware Improved Hacking Suite Protection Light Armor Plating Weapon Minigun Energy Gun EM Shotgun Energy Cannon Heavy Plasma Cannon Ballistic Gun Minigun Ballistic Cannon Mini Assault Cannon Launcher Improved Proton Missile Launcher Special Weapon Mining Laser Impact Weapon Power Maul Piercing Weapon Makeshift Spear Special Melee Weapon Dirty Datajack Build | -11 -10 -10 -10 -9 -8 -7 -7 -7 -7 -6 -6 -6 -5 -5 -5 -5 -4 ------- Run | Scr Mat Min Exi Min Mat Fac Low Low Zio Pro Fac Ext Fac Upp Upp Zhi Pro Slots Evolved 10 | . . . . . 4 2 . . . . 2 . 2 . . . . Power . | . . . . . . . . . . . . . . . . . . Propulsion 2 | . . . . . 2 . . . . . . . . . . . . Utility 6 | . . . . . 2 1 . . . . 2 . 1 . . . . Weapon 2 | . . . . . . 1 . . . . . . 1 . . . . Parts Attached 160 | 5 6 . 3 6 10 29 2 3 3 2 39 21 14 4 . 12 1 Power 18 | 1 . . . . 1 5 . . 1 . 8 1 . . . 1 . Engine 11 | 1 . . . . 1 2 . . 1 . 5 1 . . . . . Core 6 | . . . . . . 3 . . . . 3 . . . . . . Reactor 1 | . . . . . . . . . . . . . . . . 1 . Propulsion 36 | 1 3 . 1 2 4 9 . . . . 7 3 3 . . 3 . Treads 14 | . 1 . . . 3 . . . . . 6 3 1 . . . . Leg 2 | . . . . . . . . . . . . . 2 . . . . Wheel 9 | 1 2 . 1 2 1 2 . . . . . . . . . . . Hover 11 | . . . . . . 7 . . . . 1 . . . . 3 . Flight . | . . . . . . . . . . . . . . . . . . Utility 47 | 1 2 . 2 . 2 6 . . 2 1 8 10 5 2 . 5 1 Device 23 | . . . . . . 3 . . 1 1 6 5 4 1 . 2 . Storage 10 | 1 2 . 2 . . 1 . . 1 . 1 1 . . . 1 . Processor 5 | . . . . . . 2 . . . . . 1 1 . . . 1 Hackware 4 | . . . . . . . . . . . 1 1 . 1 . 1 . Protection 5 | . . . . . 2 . . . . . . 2 . . . 1 . Artifact . | . . . . . . . . . . . . . . . . . . Weapon 59 | 2 1 . . 4 3 9 2 3 . 1 16 7 6 2 . 3 . Energy Gun 16 | 1 . . . 1 2 4 . 1 . 1 5 . 1 . . . . Energy Cannon 1 | . . . . . . . . . . . . 1 . . . . . Ballistic Gun 11 | 1 1 . . . 1 3 1 1 . . 2 1 . . . . . Ballistic Cannon 16 | . . . . 2 . 2 . . . . 6 1 4 . . 1 . Launcher 9 | . . . . 1 . . 1 1 . . 3 3 . . . . . Special Weapon 1 | . . . . . . . . . . . . 1 . . . . . Impact Weapon 2 | . . . . . . . . . . . . . 1 . . 1 . Slashing Weapon . | . . . . . . . . . . . . . . . . . . Piercing Weapon 1 | . . . . . . . . . . . . . . 1 . . . Special Melee Weapon 2 | . . . . . . . . . . . . . . 1 . 1 . Unidentified Prototypes 17 | . . . . . 1 5 . . . . 3 . 2 . . 4 2 Parts Lost 47 | . 1 . . 4 2 5 . . . 1 14 6 7 5 1 . 1 Power 7 | . . . . . 1 1 . . . . 5 . . . . . . Propulsion 14 | . . . . 2 1 1 . . . . 3 3 2 2 . . . Utility 9 | . . . . . . 1 . . . . 2 1 3 2 . . . Weapon 17 | . 1 . . 2 . 2 . . . 1 4 2 2 1 1 . 1 Highest Loss Streak 7 | . 1 . . 4 1 2 . . . 1 3 3 7 4 1 . 1 Average Slot Usage (%) 85 | . 91 100 100 87 86 99 100 100 100 98 86 72 58 27 16 44 85 Engine 6 | . 14 14 14 14 9 4 . . 3 7 2 4 4 . . . . Core 1 | . . . . . . 2 7 7 3 . 2 . . . . . . Treads 8 | . 9 14 11 . 14 7 . . . . 10 23 9 . . . . Wheel 6 | . 14 14 16 27 17 9 . . . . . . . . . . . Hover 8 | . . . . . . 13 30 30 30 30 3 . . . . 8 17 Device 6 | . . . . . . 7 7 7 7 6 12 13 10 2 . 3 11 Storage 16 | . 24 28 28 28 18 15 15 15 15 15 18 3 4 . . 2 5 Processor 8 | . . . . . . 10 15 15 15 15 12 7 12 11 11 11 14 Protection 1 | . . . . . 13 4 . . . . . 3 . . . 1 5 Energy Gun 5 | . 8 . . . 1 15 . 2 7 11 5 . 1 . . . . Ballistic Gun 7 | . 19 28 28 3 3 . 22 20 15 8 . . . . . . . Ballistic Cannon 5 | . . . . 11 9 6 . . . . 11 4 9 . . 1 5 Naked Turns . | . . . . . . . . . . . . . . . . . . Heaviest Build 100 | 12 40 40 72 74 83 87 63 63 63 63 100 62 65 3 2 32 32 Greatest Support 120 | 16 26 10 20 32 40 76 64 64 64 64 120 120 60 3 3 51 51 Greatest Overweight (x) 8 | . 3 3 5 3 5 8 . . . . 1 3 2 . . 4 . Average Overweight (x) . | . 1 3 3 2 2 1 . . . . . . . . . . . Largest Inventory Capacity 24 | 6 16 16 20 20 20 20 18 18 18 18 24 8 8 4 4 4 4 Average Capacity 16 | 4 13 16 16 20 20 19 18 18 18 18 22 6 7 4 4 4 4 Most Carried 24 | 5 10 11 18 18 19 20 18 18 18 18 24 8 8 4 4 4 3 Average Carried 14 | 2 7 10 14 15 14 18 17 18 17 18 21 5 7 3 4 3 1 Final Capacity 20 | 6 16 16 20 20 20 18 18 18 18 18 4 8 4 4 4 4 4 Final Carried 19 | 5 10 11 18 15 19 18 18 18 18 18 4 8 4 4 4 3 1 Class Distribution -------------------- 41% | Mutant 14% | Hauler-Mutant 14% | Hauler-Gunner 11% | Scavenger-Mutant 8% | Gunner 7% | Scavenger-Skirmisher Dominant Class ---------------- Mutant | -10/Materials Mutant | -10/Mines Mutant | -10/Exiles Hauler-Mutant | -9/Mines Hauler-Mutant | -8/Materials Mutant | -7/Factory Gunner | -7/Lower Caves Gunner | -7/Lower Caves Mutant | -7/Zion Mutant | -6/Proximity Caves Hauler-Gunner | -6/Factory Scavenger-Mutant | -6/Extension Scavenger-Mutant | -5/Factory Mutant | -5/Upper Caves Mutant | -5/Upper Caves Mutant | -5/Zhirov Mutant | -4/Proximity Caves Resources | -11 -10 -10 -10 -9 -8 -7 -7 -7 -7 -6 -6 -6 -5 -5 -5 -5 -4 ----------- Run | Scr Mat Min Exi Min Mat Fac Low Low Zio Pro Fac Ext Fac Upp Upp Zhi Pro Matter Collected 4241 | 183 182 . . 161 198 524 174 180 20 33 1446 667 103 19 4 347 . Remotely . | . . . . . . . . . . . . . . . . . . Salvage Created 4706 | 103 328 . . 171 434 656 215 236 . . 1583 488 145 . . 347 . Parts 197 | 5 23 . . 9 22 26 9 5 . . 73 15 8 . . 2 . Haulers Intercepted 5 | . . . . . 1 1 . . . . 1 2 . . . . . Recyclers Shooed 10 | . 1 . . 1 1 2 . . . . 3 2 . . . . . Parts Field Recycled . | . . . . . . . . . . . . . . . . . . Retrieved Matter . | . . . . . . . . . . . . . . . . . . Parts Self-Destructed 24 | . . . . . . . 10 3 . 10 . . . . 1 . . Prevented 1 | . . . . . . . . . . 1 . . . . . . . Kills | -11 -10 -10 -10 -9 -8 -7 -7 -7 -7 -6 -6 -6 -5 -5 -5 -5 -4 ------- Run | Scr Mat Min Exi Min Mat Fac Low Low Zio Pro Fac Ext Fac Upp Upp Zhi Pro Combat Hostiles Destroyed 83 | . 8 . . 5 4 9 5 4 . . 39 5 4 . . . . Melee 2 | . . . . . . . . . . . . 2 . . . . . Guns 24 | . 8 . . 2 2 6 2 1 . . 2 . 1 . . . . Cannons 39 | . . . . 3 2 3 . . . . 27 1 3 . . . . AOE 18 | . . . . . . . 3 3 . . 10 2 . . . . . Classes Destroyed 15 | 2 4 . . 1 2 2 . . . . 4 . . . . . . Worker 5 | . 1 . . . 1 2 . . . . . 1 . . . . . Builder 8 | . 1 . . . . . . . . . 7 . . . . . . Tunneler 2 | 1 . . . . . 1 . . . . . . . . . . . Hauler 5 | . . . . . 1 1 . . . . 1 2 . . . . . Recycler 9 | 1 1 . . . 3 2 . . . . 1 1 . . . . . Mechanic 1 | . . . . . . . . . . . 1 . . . . . . Swarmer 15 | . 6 . . . . . . 4 . . 4 1 . . . . . Saboteur 2 | . . . . . . . . . . . 1 . 1 . . . . Grunt 40 | . 2 . . 3 3 6 3 . . . 21 1 1 . . . . Brawler 4 | . . . . . . . . . . . 4 . . . . . . Duelist 6 | . . . . 2 . . 1 . . . 1 2 . . . . . Protector 3 | . . . . . . . . . . . 2 1 . . . . . Sentry 5 | . . . . . 1 1 . . . . 2 . 1 . . . . Hunter 5 | . . . . . . 1 1 . . . 3 . . . . . . Programmer 3 | . . . . . . 1 . . . . 1 . 1 . . . . Best Kill Streak 9 | 1 4 . . 5 3 3 4 4 . . 9 3 3 . . . . Combat Bots Only 8 | . 3 . . 5 2 3 4 4 . . 8 2 3 . . . . Max Kills in Single Turn 7 | 1 1 . . 1 1 1 2 3 . . 7 2 1 . . . . Gunslinging . | . . . . . . . . . . . . . . . . . . Exploded 3 | . . . . . . . 2 3 . . 3 1 . . . . . Melee 1 | . . . . . . . . . . . . 1 . . . . . Uniques/NPCs Destroyed . | . . . . . . . . . . . . . . . . . . Combat | -11 -10 -10 -10 -9 -8 -7 -7 -7 -7 -6 -6 -6 -5 -5 -5 -5 -4 -------- Run | Scr Mat Min Exi Min Mat Fac Low Low Zio Pro Fac Ext Fac Upp Upp Zhi Pro Damage Taken 11957 | . 320 . . 399 446 531 519 80 . 57 5611 1370 1520 444 168 . 492 Core 2013 | . 71 . . 78 47 20 56 18 . . 524 190 509 234 148 . 118 Absorbed by Shields 150 | . . . . . . . . . . . . 150 . . . . . Reduced by Siege Mode 101 | . . . . . . . . . . . 101 . . . . . . Core Remaining (%) 66 | 100 . . . 40 91 . . . . 86 . 16 . . . . . Volleys Fired 290 | 13 24 . . 17 29 42 20 8 . 2 106 17 12 . . . . Largest 4 | 2 2 . . 2 2 3 3 3 . 3 3 3 4 . . . . Hottest 231 | 60 60 . . 85 91 157 86 75 . 120 207 186 231 . . . . Shots Fired 676 | 26 48 . . 25 53 109 59 10 . 5 271 35 35 . . . . Gun 321 | 26 48 . . 13 24 83 57 9 . 5 47 4 5 . . . . Cannon 339 | . . . . 10 29 26 . . . . 217 27 30 . . . . Launcher 16 | . . . . 2 . . 2 1 . . 7 4 . . . . . Special . | . . . . . . . . . . . . . . . . . . Kinetic 478 | 13 31 . . 21 48 31 57 3 . 2 223 19 30 . . . . Thermal 125 | . . . . 2 5 65 . . . . 41 12 . . . . . Explosive 12 | . . . . 2 . . 2 1 . . 7 . . . . . . Electromagnetic 61 | 13 17 . . . . 13 . 6 . 3 . 4 5 . . . . Robot Hit Streak 39 | 9 14 . . 17 10 18 21 30 . 9 39 11 5 . . . . Robot Miss Streak 3 | 3 2 . . 2 2 2 3 1 . 2 3 1 3 . . . . Penetration Max . | . . . . . . . . . . . . . . . . . . Secondary Targets 1 | . 1 . . . . . . . . . . . . . . . . Max Gunslinging Chain 1 | . 1 . . . . . . . . . . . . . . . . Shots Hit Robots 477 | 18 32 . . 19 33 83 49 9 . 4 179 25 20 . . 5 1 Core Hits 221 | 4 16 . . 9 11 29 11 8 . 1 99 25 7 . . 1 . Critical Hits 6 | . . . . . . . . . . . 4 1 1 . . . . Critical Kills 2 | . . . . . . . . . . . 1 1 . . . . . Critical Parts Destroyed 4 | . . . . . . . . . . . 3 . 1 . . . . Melee Attacks 8 | . . . . . . . . . . . . . . . . 5 3 Impact 5 | . . . . . . . . . . . . . . . . 5 . Slashing . | . . . . . . . . . . . . . . . . . . Piercing . | . . . . . . . . . . . . . . . . . . Sneak Attacks . | . . . . . . . . . . . . . . . . . . Combat Hostiles . | . . . . . . . . . . . . . . . . . . Follow-up Attacks . | . . . . . . . . . . . . . . . . . . Damage Inflicted 14114 | 177 414 . . 431 539 1467 978 303 . 70 6975 1585 647 . . 528 . Guns 3721 | 177 414 . . 156 242 1069 690 101 . 70 660 79 63 . . . . Cannons 5232 | . . . . 127 297 322 . . . . 3235 670 581 . . . . Explosions 4577 | . . . . 148 . 70 288 202 . . 3080 789 . . . . . Melee 528 | . . . . . . . . . . . . . . . . 528 . Ramming 56 | . . . . . . 6 . . . . . 47 3 . . . . Kinetic 6419 | 67 202 . . 247 503 375 690 34 . 18 3324 378 581 . . . . Thermal 3913 | . . . . 36 36 884 . . . . 2201 756 . . . . . Explosive 2088 | . . . . 148 . . 288 202 . . 1450 . . . . . . Electromagnetic 1110 | 110 212 . . . . 202 . 67 . 52 . 404 63 . . . . Impact 528 | . . . . . . . . . . . . . . . . 528 . Slashing . | . . . . . . . . . . . . . . . . . . Piercing . | . . . . . . . . . . . . . . . . . . Highest Corruption 13 | . . . . . . 4 4 4 4 . 12 13 . 3 3 3 3 Average Corruption 8 | . . . . . . 4 4 4 4 . 9 12 . 2 3 3 3 Corruption Purged . | . . . . . . . . . . . . . . . . . . Effects 170 | . . . . . . 6 7 4 2 . 98 44 . 2 2 3 2 Message Errors 22 | . . . . . . . 1 . 1 . 11 5 . 1 1 . 2 Matter Fused 24 | . . . . . . 1 . 1 . . 9 10 . 1 . 2 . Heat Flow Errors 19 | . . . . . . 2 . 2 1 . 11 2 . . 1 . . Energy Discharges 13 | . . . . . . . 2 . . . 7 3 . . . 1 . Parts Rejected 6 | . . . . . . . 1 . . . 4 1 . . . . . Data Loss (minor) 9 | . . . . . . 1 1 1 . . 2 4 . . . . . Data Loss (major) 2 | . . . . . . . . . . . 2 . . . . . . Misfires 2 | . . . . . . . . . . . . 2 . . . . . Alerts 2 | . . . . . . . . . . . . 2 . . . . . Misdirections 16 | . . . . . . . . . . . 10 6 . . . . . Targeting Errors 40 | . . . . . . 1 1 . . . 31 7 . . . . . Weapon Failures 15 | . . . . . . 1 1 . . . 11 2 . . . . . Overload Shots . | . . . . . . . . . . . . . . . . . . Overflow Damage 921 | . . . . 6 6 24 . . . . 527 53 5 . . 300 . Projectiles 190 | . . . . . 6 10 . . . . 145 24 5 . . . . Explosions 431 | . . . . 6 . 14 . . . . 382 29 . . . . . Melee 300 | . . . . . . . . . . . . . . . . 300 . Knockbacks 45 | . . . . 3 3 6 . . . . 25 1 6 . . 1 . Impact 3 | . . . . . . 1 . . . . . 1 . . . 1 . Kinetic 40 | . . . . 3 3 5 . . . . 24 . 5 . . . . Secondary 2 | . . . . . . . . . . . 1 . 1 . . . . Self-Inflicted Damage 395 | . . . . 9 . 4 . . . . 376 5 1 . . . . Shots 9 | . . . . 1 . 1 . . . . 7 . . . . . . Rammed 13 | . . . . . . 1 . . . . . 11 1 . . . . Targets Rammed 15 | . . . . . . 1 . . . . . 13 1 . . . . Kicked . | . . . . . . . . . . . . . . . . . . Crushed 2 | . . . . . . . . . . . . 2 . . . . . Highest Temperature 433 | 40 94 . . 66 144 432 2 257 227 51 206 247 433 . 131 . 44 Average Temperature 66 | 14 36 . . 22 44 88 2 101 129 24 68 59 130 . 71 . 34 Received Heat Transfer 2752 | . 102 . . 96 207 192 9 . . 9 1095 343 555 72 9 . 63 Effects 9 | . . . . . . 1 . . 2 . . . 6 . . . . Shutdowns 1 | . . . . . . . . . . . . . 1 . . . . Interference 5 | . . . . . . . . . 2 . . . 3 . . . . Matter Decay 2 | . . . . . . 1 . . . . . . 1 . . . . Short Circuit 1 | . . . . . . . . . . . . . 1 . . . . Siege Activations 1 | . . . . . . . . . . . 1 . . . . . . Total Turns 33 | . . . . . . . . . . . 33 . . . . . . Longest Duration 33 | . . . . . . . . . . . 33 . . . . . . Robots Corrupted . | . . . . . . . . . . . . . . . . . . Combat Hostiles . | . . . . . . . . . . . . . . . . . . Parts Fried 4 | . 1 . . . . . . . . . . . . . . 3 . Impact Corruptions 15 | . . . . . . . . . . . . . . . . 15 . Robots Melted . | . . . . . . . . . . . . . . . . . . Combat Hostiles . | . . . . . . . . . . . . . . . . . . Parts Melted 4 | . . . . . . 2 . . . . 2 . . . . . . Heat Transferred 5036 | . . . . 74 74 1752 . . . . 2160 976 . . . . . Parts Sabotaged 3 | . . . . . . . . . . . . 3 . . . . . Parts Stolen . | . . . . . . . . . . . . . . . . . . Parts Stripped . | . . . . . . . . . . . . . . . . . . Power Chain Reactions 5 | . . . . . . 2 . . . . . 3 . . . . . Missiles Intercepted . | . . . . . . . . . . . . . . . . . . Alert | -11 -10 -10 -10 -9 -8 -7 -7 -7 -7 -6 -6 -6 -5 -5 -5 -5 -4 ------- Run | Scr Mat Min Exi Min Mat Fac Low Low Zio Pro Fac Ext Fac Upp Upp Zhi Pro Peak Influence 1997 | 10 172 21 . 125 155 734 . . . . 1657 1997 1017 . . . . Initial 942 | . 6 21 . . . . . . . . 95 806 942 . . . . Average 654 | 4 48 21 . 67 66 548 . . . . 946 1556 921 . . . . Maximum Alert Level 5 | . . . . . . 3 . . . . 5 5 3 . . . . Low Security (%) 37 | 100 100 100 . 100 100 9 . . . . 10 . . . . . . Level 1 2 | . . . . . . . . . . . 8 . . . . . . Level 2 14 | . . . . . . 69 . . . . 6 . . . . . . Level 3 24 | . . . . . . 21 . . . . 28 24 100 . . . . Level 4 13 | . . . . . . . . . . . 42 11 . . . . . Level 5 8 | . . . . . . . . . . . 3 63 . . . . . High Security . | . . . . . . . . . . . . . . . . . . Max Security . | . . . . . . . . . . . . . . . . . . Squads Dispatched 29 | . 2 . . . 1 5 . . . . 11 6 4 . . . . Investigation 3 | . 2 . . . . 1 . . . . . . . . . . . Extermination 4 | . . . . . . 1 . . . . 1 . 2 . . . . Reinforcement 11 | . . . . . 1 2 . . . . 4 3 1 . . . . Assault 9 | . . . . . . . . . . . 5 3 1 . . . . Garrison 2 | . . . . . . 1 . . . . 1 . . . . . . Intercept . | . . . . . . . . . . . . . . . . . . Construction Impeded 2 | . . . . . . . . . . . 1 . 1 . . . . Haulers Reinforced 3 | . . . . . . 1 . . . . 2 . . . . . . Stealth | -11 -10 -10 -10 -9 -8 -7 -7 -7 -7 -6 -6 -6 -5 -5 -5 -5 -4 --------- Run | Scr Mat Min Exi Min Mat Fac Low Low Zio Pro Fac Ext Fac Upp Upp Zhi Pro Distress Signals 4 | . . . . . . 1 . . . . 1 1 1 . . . . Communications Jammed . | . . . . . . . . . . . . . . . . . . Distress Signals . | . . . . . . . . . . . . . . . . . . Times Spotted 212 | . 16 . . 6 7 15 12 5 . 8 65 48 11 8 2 . 9 Peak Tracking Total 10 | . 5 . . 3 4 7 5 4 . 4 8 10 7 8 1 . 5 Tactical Retreats 16 | . 1 . . 1 . 3 2 . . 1 3 2 1 2 . . . Traps | -11 -10 -10 -10 -9 -8 -7 -7 -7 -7 -6 -6 -6 -5 -5 -5 -5 -4 ------- Run | Scr Mat Min Exi Min Mat Fac Low Low Zio Pro Fac Ext Fac Upp Upp Zhi Pro Traps Triggered 5 | . 1 . . . . 2 . . . . . 1 1 . . . . Indirectly . | . . . . . . . . . . . . . . . . . . Trap Hack Attempts . | . . . . . . . . . . . . . . . . . . Triggered . | . . . . . . . . . . . . . . . . . . Disarmed . | . . . . . . . . . . . . . . . . . . Reprogrammed . | . . . . . . . . . . . . . . . . . . Reused . | . . . . . . . . . . . . . . . . . . Traps Extracted . | . . . . . . . . . . . . . . . . . . Installed . | . . . . . . . . . . . . . . . . . . Triggered 6 | . . . . . . . 2 1 . 1 . . . . . . 2 Exploded 2 | . . . . . 2 . . . . . . . . . . . . Machines | -11 -10 -10 -10 -9 -8 -7 -7 -7 -7 -6 -6 -6 -5 -5 -5 -5 -4 ---------- Run | Scr Mat Min Exi Min Mat Fac Low Low Zio Pro Fac Ext Fac Upp Upp Zhi Pro Machines Disabled 11 | . . . . . 1 . . . . . 8 2 . . . . . Max in Single Turn 6 | . . . . . 1 . . . . . 6 . . . . . . Garrison Access 2 | . . . . . . 1 . . . . 1 . . . . . . Machines Sabotaged . | . . . . . . . . . . . . . . . . . . Garrisons Compromised . | . . . . . . . . . . . . . . . . . . Overloaded Fab Kills . | . . . . . . . . . . . . . . . . . . Fab Network Shutdowns 2 | . . . . . . 1 . . . . 1 . . . . . . Hacking | -11 -10 -10 -10 -9 -8 -7 -7 -7 -7 -6 -6 -6 -5 -5 -5 -5 -4 --------- Run | Scr Mat Min Exi Min Mat Fac Low Low Zio Pro Fac Ext Fac Upp Upp Zhi Pro Machines Accessed 29 | . 6 . 1 . . 5 . . . . 5 4 1 1 . 6 . Terminals 13 | . 5 . . . . 3 . . . . 1 4 . . . . . Fabricators 2 | . . . . . . 1 . . . . 1 . . . . . . Repair Stations 1 | . . . . . . . . . . . 1 . . . . . . Recycling Units 2 | . 1 . . . . . . . . . 1 . . . . . . Scanalyzers 2 | . . . . . . . . . . . 1 . 1 . . . . Garrison Access 1 | . . . . . . 1 . . . . . . . . . . . Total Hacks 79 | . 20 . 1 . . 14 . . . . 14 8 2 1 . 19 . Successful 56 | . 9 . 1 . . 10 . . . . 11 3 2 1 . 19 . Failed 23 | . 11 . . . . 4 . . . . 3 5 . . . . . Catastrophic 2 | . . . . . . 2 . . . . . . . . . . . Database Lockouts . | . . . . . . . . . . . . . . . . . . Manual 32 | . 18 . 1 . . 8 . . 1 . 1 3 . . . . . Terminals 37 | . 19 . . . . 9 . . . . 1 8 . . . . . Fabricators 9 | . . . . . . 4 . . . . 5 . . . . . . Repair Stations 2 | . . . . . . . . . . . 2 . . . . . . Recycling Units 3 | . 1 . . . . . . . . . 2 . . . . . . Scanalyzers 6 | . . . . . . . . . . . 4 . 2 . . . . Garrison Access 1 | . . . . . . 1 . . . . . . . . . . . Terminal Hacks 35 | . 6 . 1 . . 4 . . . . 1 3 . 1 . 19 . Record 7 | . . . . . . . . . . . . . . . . 7 . Part Schematic 4 | . . . . . . . . . . . . . . . . 4 . Robot Analysis 8 | . 2 . . . . 1 . . . . . 1 . . . 4 . Prototype ID Bank 5 | . 1 . . . . . . . . . . . . . . 4 . Open Door 1 | . . . . . . . . . . . . . . 1 . . . Branch Access Points 3 | . 1 . . . . 1 . . . . 1 . . . . . . Emergency Access Points 1 | . . . . . . 1 . . . . . . . . . . . Alert Level 2 | . . . . . . 1 . . . . . 1 . . . . . Unreport Threat 2 | . 1 . . . . . . . . . . 1 . . . . . Locate Traps 1 | . 1 . . . . . . . . . . . . . . . . EX-Prototype ID Bank 1 | . . . 1 . . . . . . . . . . . . . . Fabricator Hacks 5 | . . . . . . 2 . . . . 3 . . . . . . Network Status 2 | . . . . . . 1 . . . . 1 . . . . . . Build 3 | . . . . . . 1 . . . . 2 . . . . . . Repair Station Hacks 2 | . . . . . . . . . . . 2 . . . . . . Scan Component 1 | . . . . . . . . . . . 1 . . . . . . Repair 1 | . . . . . . . . . . . 1 . . . . . . Recycling Unit Hacks 1 | . . . . . . . . . . . 1 . . . . . . Retrieve Components 1 | . . . . . . . . . . . 1 . . . . . . Scanalyzer 6 | . . . . . . . . . . . 4 . 2 . . . . Insert Component 3 | . . . . . . . . . . . 2 . 1 . . . . Analyze 3 | . . . . . . . . . . . 2 . 1 . . . . Garrison Access Hacks . | . . . . . . . . . . . . . . . . . . Unauthorized Hacks 7 | . 3 . . . . 4 . . . . . . . . . . . Terminals 3 | . 2 . . . . 1 . . . . . . . . . . . Botnet 3 | . 2 . . . . 1 . . . . . . . . . . . Fabricators 2 | . . . . . . 2 . . . . . . . . . . . Report 1 | . . . . . . 1 . . . . . . . . . . . Haulers 1 | . . . . . . 1 . . . . . . . . . . . Repair Stations . | . . . . . . . . . . . . . . . . . . Recycling Units 1 | . 1 . . . . . . . . . . . . . . . . Tunnel 1 | . 1 . . . . . . . . . . . . . . . . Scanalyzers . | . . . . . . . . . . . . . . . . . . Garrison Access 1 | . . . . . . 1 . . . . . . . . . . . Jam 1 | . . . . . . 1 . . . . . . . . . . . Data Cores Recovered . | . . . . . . . . . . . . . . . . . . Used . | . . . . . . . . . . . . . . . . . . Hacking Detections 16 | . 4 . . . . 4 . . . . 4 3 1 . . . . Full Trace Events . | . . . . . . . . . . . . . . . . . . Feedback Events . | . . . . . . . . . . . . . . . . . . Feedback Blocked . | . . . . . . . . . . . . . . . . . . Robot Schematics Acquired . | . . . . . . . . . . . . . . . . . . Robots Built . | . . . . . . . . . . . . . . . . . . Matter . | . . . . . . . . . . . . . . . . . . Time . | . . . . . . . . . . . . . . . . . . Total Robot Build Rating . | . . . . . . . . . . . . . . . . . . Part Schematics Acquired 7 | . . . . . . . . . . . 2 . 1 . . 4 . Parts Built 6 | . . . . . . 2 . . . . 4 . . . . . . Matter 724 | . . . . . . 212 . . . . 512 . . . . . . Time 362 | . . . . . . 106 . . . . 256 . . . . . . Total Part Build Rating 44 | . . . . . . 12 . . . . 32 . . . . . . Parts Repaired 1 | . . . . . . . . . . . 1 . . . . . . Time 18 | . . . . . . . . . . . 18 . . . . . . Parts Recycled . | . . . . . . . . . . . . . . . . . . Recycled Matter . | . . . . . . . . . . . . . . . . . . Retrieved Matter . | . . . . . . . . . . . . . . . . . . Retrieved Components 1 | . . . . . . . . . . . 1 . . . . . . Parts Scanalyzed 3 | . . . . . . . . . . . 2 . 1 . . . . Part Schematics Acquired 3 | . . . . . . . . . . . 2 . 1 . . . . Parts Damaged . | . . . . . . . . . . . . . . . . . . Bothacking | -11 -10 -10 -10 -9 -8 -7 -7 -7 -7 -6 -6 -6 -5 -5 -5 -5 -4 ------------ Run | Scr Mat Min Exi Min Mat Fac Low Low Zio Pro Fac Ext Fac Upp Upp Zhi Pro Used RIF Installer . | . . . . . . . . . . . . . . . . . . Robots Hacked 1 | . . . . . . . . . . . . . . . . . 1 Non-combat . | . . . . . . . . . . . . . . . . . . Combat 1 | . . . . . . . . . . . . . . . . . 1 Robot Hacks Applied 1 | . . . . . . . . . . . . . . . . . 1 parse_system 1 | . . . . . . . . . . . . . . . . . 1 Relay Couplers Released . | . . . . . . . . . . . . . . . . . . Robots Rewired 1 | . . . . . . . . . . . . 1 . . . . . Allies Hacked . | . . . . . . . . . . . . . . . . . . Hacks Repelled . | . . . . . . . . . . . . . . . . . . Allies | -11 -10 -10 -10 -9 -8 -7 -7 -7 -7 -6 -6 -6 -5 -5 -5 -5 -4 -------- Run | Scr Mat Min Exi Min Mat Fac Low Low Zio Pro Fac Ext Fac Upp Upp Zhi Pro Total Allies 17 | . . . . . . . . . 13 . . 4 . . . . . Largest Group 13 | . . . . . . . . . 13 13 11 4 1 . . . . Highest-Rated Group 388 | . . . . . . . . . 388 388 318 375 94 . . . . Highest-Rated Ally 156 | . . . . . . . . . 42 42 37 156 94 . . . . Total Orders . | . . . . . . . . . . . . . . . . . . Ally Attacks 311 | . . . . . . . . . . 40 128 134 9 . . . . Total Damage 7401 | . . . . . . . . . . 728 2005 4402 266 . . . . Kills 59 | . . . . . . . . . . 8 13 37 1 . . . . Allies Corrupted 2 | . . . . . . . . . . . 2 . . . . . . Allies Melted 1 | . . . . . . . . . . . 1 . . . . . . Intel | -11 -10 -10 -10 -9 -8 -7 -7 -7 -7 -6 -6 -6 -5 -5 -5 -5 -4 ------- Run | Scr Mat Min Exi Min Mat Fac Low Low Zio Pro Fac Ext Fac Upp Upp Zhi Pro Robot Analysis Total 8 | . 2 . . . . 1 . . . . . 1 . . . 4 . Derelict Logs Recovered 14 | . . 1 . 1 . . 2 3 2 2 . . . 2 1 . . Drone Launches . | . . . . . . . . . . . . . . . . . . Drone Recoveries . | . . . . . . . . . . . . . . . . . . Exploration | -11 -10 -10 -10 -9 -8 -7 -7 -7 -7 -6 -6 -6 -5 -5 -5 -5 -4 ------------- Run | Scr Mat Min Exi Min Mat Fac Low Low Zio Pro Fac Ext Fac Upp Upp Zhi Pro Turns Passed 8433 | 97 622 181 536 601 426 1057 242 276 543 486 1594 732 544 208 116 134 38 Spaces Moved 7766 | 49 451 164 478 464 253 870 374 456 913 613 871 597 312 402 207 215 77 Core 1131 | 3 . . . . . . . . . . 37 339 49 402 207 94 . Treads 1106 | . 71 . . . 2 6 . . . . 506 258 263 . . . . Legs . | . . . . . . . . . . . . . . . . . . Wheels 2131 | 46 380 164 478 464 251 348 . . . . . . . . . . . Hover 3398 | . . . . . . 516 374 456 913 613 328 . . . . 121 77 Flight . | . . . . . . . . . . . . . . . . . . Fastest Speed 42 | 50 100 110 110 110 120 45 45 45 45 45 45 50 50 50 50 42 42 Average Speed 82 | 96 116 110 110 118 121 77 45 45 45 45 120 97 146 50 50 47 42 Slowest Speed 250 | 100 180 110 130 120 240 240 45 45 45 45 190 200 200 50 50 250 42 Overloaded Moves . | . . . . . . . . . . . . . . . . . . Propulsion Burnouts . | . . . . . . . . . . . . . . . . . . Robots Hopped . | . . . . . . . . . . . . . . . . . . Cave-ins Triggered 2 | . . . . . . . . . . . 2 . . . . . . Teleports 1 | . . . . . . . . . . . . . . . . . 1 Exploration Rate (%) 50 | 4 67 36 90 81 18 17 61 68 83 76 17 72 8 81 43 62 23 Regions Visited 17 Branch Regions 12 Pre-discovered Areas 8 | . 1 . . . . . 2 . 1 1 . . . . . 3 . Known Exits Taken 8 | . 1 . . . . 1 . . . . 1 1 1 1 1 1 . Unknown Exits Taken 9 | 1 . 1 1 1 1 . 1 1 1 1 . . . . . . . Scrap Searched 18 | . . 1 . 1 . . 1 2 4 4 . . . 3 1 . 1 Spaces Dug 21 | . . . . . . . . . . . 21 . . . . . . Terrain Destroyed 195 | . . . . 16 . 6 3 13 . . 129 13 15 . . . . Melee . | . . . . . . . . . . . . . . . . . . Projectile 54 | . . . . . . . . . . . 38 1 15 . . . . AOE 141 | . . . . 16 . 6 3 13 . . 91 12 . . . . . Terrain Rammed . | . . . . . . . . . . . . . . . . . . Walls Destroyed . | . . . . . . . . . . . . . . . . . . Machines Disabled . | . . . . . . . . . . . . . . . . . . Actions | -11 -10 -10 -10 -9 -8 -7 -7 -7 -7 -6 -6 -6 -5 -5 -5 -5 -4 --------- Run | Scr Mat Min Exi Min Mat Fac Low Low Zio Pro Fac Ext Fac Upp Upp Zhi Pro Total 9223 | 72 503 164 485 488 318 1173 413 515 1044 820 1210 704 373 406 218 234 83 Wait 776 | 1 16 . . 1 12 180 13 49 126 199 127 19 21 . 12 . . Move 7749 | 48 450 163 477 463 252 869 373 455 912 612 870 596 311 401 206 214 77 Hop . | . . . . . . . . . . . . . . . . . . Pick Up 100 | 5 6 1 5 1 9 23 3 . 1 2 33 5 2 1 . 3 . Fast Attach 80 | 5 2 . . . 7 12 . . 1 2 13 16 11 2 . 8 1 Attach 41 | . 2 . . 4 3 6 1 . . . 13 4 1 1 . 4 2 Detach 11 | . . . . . 1 . . . . . 4 5 1 . . . . Swap 42 | . 2 . 3 2 . 12 1 3 2 . 13 1 2 1 . . . Drop 87 | . 1 . . . 5 28 2 . 2 3 31 4 11 . . . . Fire 290 | 13 24 . . 17 29 42 20 8 . 2 106 17 12 . . . . Melee 8 | . . . . . . . . . . . . . . . . 5 3 Ram 7 | . . . . . . . . . . . . 6 1 . . . . Kick . | . . . . . . . . . . . . . . . . . . Crush 8 | . . . . . . 1 . . . . . 7 . . . . . Escape Stasis 6 | . . . . . . . . . . . . 6 . . . . . Rewire 18 | . . . . . . . . . . . . 18 . . . . . Trap . | . . . . . . . . . . . . . . . . . . Miscellaneous . | . . . . . . . . . . . . . . . . . . Route ------- -11/Scrapyard -10/Materials (discovered 2 exits: [*Mat] / *Min) -10/Mines -10/Exiles -9/Mines (discovered 2 exits: [*Mat x2]) -8/Materials (discovered 2 exits: *Fac / Sto) -7/Factory (discovered 2 exits: *Low x2) -7/Lower Caves -7/Lower Caves (discovered 2 exits: *Fac / *Zio) -7/Zion -6/Proximity Caves -6/Factory (discovered 4 exits: Low x2 / *Ext x2) -6/Extension (discovered 2 exits: *Fac / *Cet) -5/Factory -5/Upper Caves -5/Upper Caves (discovered 2 exits: *Fac / *Zhi) -5/Zhirov -4/Proximity Caves History --------- Turn | Location | Event 14 | -11/Scrapyard | Discovered new exit (range 15) 98 | -11/Scrapyard | Entered Materials 334 | -10/Materials | Build established: Mutant 455 | -10/Materials | Identified exit to Mines 528 | -10/Materials | Discovered new exit (range 13) 720 | -10/Materials | Entered Mines 725 | -10/Mines | Assembled infested the area 727 | -10/Mines | Received a Rocket Launcher from a helpful Derelict 732 | -10/Mines | Learned 2 Materials zone layouts 892 | -10/Mines | Discovered new exit (range 5) 901 | -10/Mines | Entered Exiles 932 | -10/Exiles | Met 8R-AWN 948 | -10/Exiles | Met EX-HEX 998 | -10/Exiles | Met EX-DEC 1034 | -10/Exiles | Visited The Gauntlet 1167 | -10/Exiles | Met EX-BIN 1183 | -10/Exiles | Aligned with FarCom system 1184 | -10/Exiles | Given EX-Vault access code 1210 | -10/Exiles | Opened EX-Vault 1218 | -10/Exiles | Found Skeleton Box 1240 | -10/Exiles | Warned to stay clear of 0b10 Research branches 1428 | -10/Exiles | Discovered new exit (range 10) 1437 | -10/Exiles | Left Exiles lab with Skeleton Box 1437 | -10/Exiles | Entered Mines 1528 | -9/Mines | Core integrity fell below 50% 1570 | -9/Mines | Lost 4 parts (2n2w) 1607 | -9/Mines | Discovered new exit (range 5) 1638 | -9/Mines | Build established: Hauler-Mutant 1965 | -9/Mines | Discovered new exit (range 4) 1980 | -9/Mines | Learned Materials trap positions 2038 | -9/Mines | Entered Materials 2038 | -8/Materials | Evolved 4 slots: Propulsion x2, Utility x2 2039 | -8/Materials | Identified exit to Storage 2040 | -8/Materials | Loaded intel: 17 trap records 2441 | -8/Materials | Discovered new exit (range 5) 2464 | -8/Materials | Entered Factory 2464 | -7/Factory | Evolved 2 slots: Utility x1, Weapon x1 2560 | -7/Factory | Local fabrication network quarantined 2574 | -7/Factory | Garrison activated, responded to threat 2580 | -7/Factory | Fabricated Cmb. Gravmag System? 2809 | -7/Factory | Build established: Scavenger-Skirmisher 3125 | -7/Factory | Identified exit to Lower Caves 3334 | -7/Factory | Build established: Mutant 3521 | -7/Factory | Entered Lower Caves 3748 | -7/Lower Caves | Attracted the attention of an 0b10 outpost 3760 | -7/Lower Caves | Learned location of Zion (-7) 3760 | -7/Lower Caves | Discovered new exit (range 8) 3763 | -7/Lower Caves | Entered another Lower Caves area 3780 | -7/Lower Caves | Discovered new exit (range 15) 3786 | -7/Lower Caves | Spotted B-75 Beast 3789 | -7/Lower Caves | Build established: Gunner 3794 | -7/Lower Caves | Encountered a Warlord checkpoint 3863 | -7/Lower Caves | Learned Factory terminal intel 3959 | -7/Lower Caves | Learned Factory security intel 4021 | -7/Lower Caves | Learned Factory terminal intel 4023 | -7/Lower Caves | Discovered new exit (range 13) 4039 | -7/Lower Caves | Attracted the attention of an 0b10 checkpoint 4039 | -7/Lower Caves | Entered Zion 4067 | -7/Zion | Discovered new exit (range 13) 4081 | -7/Zion | Given A8's code to call for help 4106 | -7/Zion | System corruption cleaned by Quarantine Array 4124 | -7/Zion | Gained Derelict followers 4163 | -7/Zion | Loaded intel: 5 derelict terminal locations 4230 | -7/Zion | Learned location of 1 exit from Lower Caves 4240 | -7/Zion | Build established: Mutant 4273 | -7/Zion | Learned Factory security intel 4279 | -7/Zion | Learned location of Quarantine (-3) 4298 | -7/Zion | Gained Derelict followers 4312 | -7/Zion | Received a visual enhancement algorithm 4375 | -7/Zion | Rebuked by Imprinter 4473 | -7/Zion | Gained Derelict followers 4582 | -7/Zion | Entered Proximity Caves 4582 | -6/Proximity Caves | Accompanied by 13 allies 4892 | -6/Proximity Caves | Learned 4 Factory zone layouts 5029 | -6/Proximity Caves | Discovered new exit (range 8) 5068 | -6/Proximity Caves | Entered Factory 5068 | -6/Factory | Accompanied by 11 allies 5068 | -6/Factory | Evolved 2 slots: Utility x2 5071 | -6/Factory | Loaded intel: 22 terminal locations 5154 | -6/Factory | Repaired Cmb. Gravmag System 5218 | -6/Factory | Crushed by falling debris 5308 | -6/Factory | Fabricated Arm. Heavy Treads? 5448 | -6/Factory | Fabricated Arm. Heavy Treads (x2) 5471 | -6/Factory | Local fabrication network quarantined 5734 | -6/Factory | Identified exit to Lower Caves 5734 | -6/Factory | Identified exit to Extension 5768 | -6/Factory | First assault squad dispatched 5797 | -6/Factory | System corruption reached 10% 5970 | -6/Factory | Destroyed 8 combat bots 6069 | -6/Factory | Build established: Hauler-Gunner 6613 | -6/Factory | Crushed by falling debris 6613 | -6/Factory | Core integrity fell below 50% 6662 | -6/Factory | Entered Extension 6671 | -6/Extension | Lost 3 parts (1p1n1u) 6709 | -6/Extension | Remotely autohacked Sealed Heavy Doors 6710 | -6/Extension | Rescued A7 6719 | -6/Extension | Enhanced Grunt warped into view, answering call for help 6719 | -6/Extension | Enhanced Grunt warped into view, answering call for help 6884 | -6/Extension | Spotted B-75 Beast 6886 | -6/Extension | Spotted B-75 Beast 6898 | -6/Extension | Allies destroyed B-75 Beast 6910 | -6/Extension | Allies destroyed B-75 Beast 7012 | -6/Extension | First assault squad dispatched 7112 | -6/Extension | Disrupted transfer network 7125 | -6/Extension | Extracted ID and sensor layout for unrecognized location from A7's data core 7142 | -6/Extension | Discovered new exit (range 15) 7143 | -6/Extension | Discovered new exit (range 15) 7355 | -6/Extension | Build established: Scavenger-Mutant 7382 | -6/Extension | Identified exit to Cetus 7387 | -6/Extension | Identified exit to Factory 7393 | -6/Extension | Core integrity fell below 20% 7394 | -6/Extension | Entered Factory 7394 | -5/Factory | Accompanied by 1 ally 7394 | -5/Factory | Evolved 2 slots: Utility x1, Weapon x1 7396 | -5/Factory | Loaded intel: 20 terminal locations 7424 | -5/Factory | Lost 3 parts (1n1u1w) 7694 | -5/Factory | First assault squad dispatched 7918 | -5/Factory | Found Prototype Device 7918 | -5/Factory | Identified Exp. Thermal Shield 7926 | -5/Factory | Core integrity fell below 50% 7926 | -5/Factory | Discovered new exit (range 15) 7933 | -5/Factory | Identified exit to Upper Caves 7938 | -5/Factory | Entered Upper Caves 7946 | -5/Upper Caves | Learned 4 Factory zone layouts 7949 | -5/Upper Caves | Lost 7 parts (2n3u2w) 8029 | -5/Upper Caves | Learned Factory terminal intel 8090 | -5/Upper Caves | Lost 4 parts (1n2u1w) 8100 | -5/Upper Caves | Attracted the attention of an 0b10 checkpoint 8142 | -5/Upper Caves | Discovered new exit (range 8) 8145 | -5/Upper Caves | Identified exit to Upper Caves 8146 | -5/Upper Caves | Entered another Upper Caves area 8146 | -5/Upper Caves | Discovered new exit (range 6) 8149 | -5/Upper Caves | Identified exit to Factory 8161 | -5/Upper Caves | Attracted the attention of an 0b10 checkpoint 8173 | -5/Upper Caves | Encountered a Warlord checkpoint 8173 | -5/Upper Caves | Learned Factory stockpile data 8229 | -5/Upper Caves | Core integrity fell below 20% 8254 | -5/Upper Caves | Discovered new exit (range 16) 8261 | -5/Upper Caves | Identified exit to Zhirov 8262 | -5/Upper Caves | Entered Zhirov 8262 | -5/Zhirov | Discovered new exit (range 3) 8272 | -5/Zhirov | Met Zhirov 8283 | -5/Zhirov | Learned location of Testing (-2) 8283 | -5/Zhirov | Learned location of Command (-1) 8291 | -5/Zhirov | Zhirov requested help retrieving the SGEMP Prototype 8300 | -5/Zhirov | Found Alien Artifact 8346 | -5/Zhirov | Build established: Mutant 8378 | -5/Zhirov | Found Alien Artifact 8395 | -5/Zhirov | Identified exit to Proximity Caves 8396 | -5/Zhirov | Entered Proximity Caves 8405 | -4/Proximity Caves | Attracted the attention of an 0b10 checkpoint 8407 | -4/Proximity Caves | Identified Transdimensional Reconstructor 8407 | -4/Proximity Caves | Warped through subspace 8408 | -4/Proximity Caves | Identified Integrated Reactor 8408 | -4/Proximity Caves | Installed Integrated Reactor, increased core energy generation (+10) 8434 | -4/Proximity Caves | Destroyed by G-67 Veteran with Plasma Rifle Last Messages --------------- 08414_ Found Mak. Flight Unit. 08414_ Found Overload Regulator. 08414_ Found 0b10 Decoder Chip [Looter]. 08414_ Found Launcher Guidance Computer. 08414_ Found 22 Matter. 08414_ Acquired 0b10 Decoder Chip [Looter]. 08415_ M-30 Cleanser reprogrammed Fire Trap. 08417_ M-30 Cleanser extracted Fire Trap. 08418_ Jacked S-27 Virus... >>parse_system Reading system data... 08419_ M-30 Cleanser extracted Fire Trap. 08420_ /NN08DR4YBZU4SFEC